Workbook

Sheet Animation (hidden)
T4: 1065.366213
P10: Service is finished
H14: Idle

Sheet Data (hidden)
B6: 44.13819608 | C6: Arrival | D6: 44.13819608 | E6: 0 | F6: 1 | G6: 0
B7: 44.13819608 | C7: BeginServe | D7: 44.13819608 | E7: 1 | F7: 2 | G7: 0
B8: 63.10270101 | C8: EndServe | D8: 63.10270101 | E8: 0 | F8: 3 | G8: 24.26635623
B9: 63.36438132 | C9: Arrival | D9: 63.36438132 | E9: 0 | F9: 4 | G9: 36.18778348
B10: 63.36438132 | C10: BeginServe | D10: 63.36438132 | E10: 1 | F10: 5 | G10: 19.34382776
B11: 74.85577042 | C11: Arrival | D11: 74.85577042 | E11: 0 | F11: 6 | G11: 25.25793829
B12: 93.90505996 | C12: Arrival | D12: 93.90505996 | E12: 1 | F12: 7 | G12: 3.148244653
B13: 99.12212665 | C13: EndServe | D13: 99.12212665 | E13: 2 | F13: 8 | G13: 2.628223555
B14: 99.12212665 | C14: BeginServe | D14: 99.12212665 | E14: 2 | F14: 9 | G14: 49.4953868
B15: 119.4278692 | C15: Arrival | D15: 119.4278692 | E15: 1 | F15: 10 | G15: 47.69238318
B16: 130.0928434 | C16: EndServe | D16: 130.0928434 | E16: 2 | F16: 11 | G16: 14.86272078
B17: 130.0928434 | C17: BeginServe | D17: 130.0928434 | E17: 2 | F17: 12 | G17: 11.31128196
B18: 131.5745628 | C18: Arrival | D18: 131.5745628 | E18: 1 | F18: 13 | G18: 17.56687149
B19: 138.7716969 | C19: EndServe | D19: 138.7716969 | E19: 2 | F19: 14 | G19: 26.5684889
B20: 138.7716969 | C20: BeginServe | D20: 138.7716969 | E20: 2 | F20: 15 | G20: 35.50525252
B21: 156.8325011 | C21: EndServe | D21: 156.8325011 | E21: 1 | F21: 16 | G21: 52.06335826
B22: 156.8325011 | C22: BeginServe | D22: 156.8325011 | E22: 1 | F22: 17 | G22: 36.95276319
B23: 186.9760168 | C23: Arrival | D23: 186.9760168 | E23: 0 | F23: 18 | G23: 56.54122378
B24: 190.1242614 | C24: EndServe | D24: 190.1242614 | E24: 1 | F24: 19 | G24: 89.93290852
B25: 190.1242614 | C25: BeginServe | D25: 190.1242614 | E25: 1 | F25: 20 | G25: 89.19349977
B26: 190.1779453 | C26: Arrival | D26: 190.1779453 | E26: 0 | F26: 21 | G26: 97.12295212
B27: 192.5522142 | C27: Arrival | D27: 192.5522142 | E27: 1 | F27: 22 | G27: 134.2725444
B28: 192.8061689 | C28: EndServe | D28: 192.8061689 | E28: 2 | F28: 23 | G28: 127.1917784
B29: 192.8061689 | C29: BeginServe | D29: 192.8061689 | E29: 2 | F29: 24 | G29: 131.8552959
B30: 196.6835386 | C30: Arrival | D30: 196.6835386 | E30: 1 | F30: 25 | G30: 141.4726981
B31: 240.6708048 | C31: Arrival | D31: 240.6708048 | E31: 2 | F31: 26 | G31: 151.4552351
B32: 242.047601 | C32: EndServe | D32: 242.047601 | E32: 3 | F32: 27 | G32: 179.808896
B33: 242.047601 | C33: BeginServe | D33: 242.047601 | E33: 3 | F33: 28 | G33: 197.1131674
B34: 244.3759218 | C34: EndServe | D34: 244.3759218 | E34: 2 | F34: 29 | G34: 176.9226518
B35: 244.3759218 | C35: BeginServe | D35: 244.3759218 | E35: 2 | F35: 30 | G35: 181.4091402
B36: 254.0957307 | C36: Arrival | D36: 254.0957307 | E36: 1 | F36: 31 | G36: 177.9227126
B37: 255.5335255 | C37: EndServe | D37: 255.5335255 | E37: 2 | F37: 32 | G37: 171.1937965
B38: 255.5335255 | C38: BeginServe | D38: 255.5335255 | E38: 2 | F38: 33 | G38: 213.3116845
B39: 257.1271625 | C39: Arrival | D39: 257.1271625 | E39: 1 | F39: 34 | G39: 191.2289834
B40: 258.8611257 | C40: Arrival | D40: 258.8611257 | E40: 2 | F40: 35 | G40: 161.8659632
B41: 259.0752796 | C41: Arrival | D41: 259.0752796 | E41: 3 | F41: 36 | G41: 190.5801958
B42: 259.2365783 | C42: Arrival | D42: 259.2365783 | E42: 4 | F42: 37 | G42: 174.8429763
B43: 265.4070127 | C43: EndServe | D43: 265.4070127 | E43: 5 | F43: 38 | G43: 202.4305413
B44: 265.4070127 | C44: BeginServe | D44: 265.4070127 | E44: 5 | F44: 39 | G44: 218.3211422
B45: 274.694034 | C45: EndServe | D45: 274.694034 | E45: 4 | F45: 40 | G45: 218.6695733
B46: 274.694034 | C46: BeginServe | D46: 274.694034 | E46: 4 | F46: 41 | G46: 175.1554047
B47: 276.6852843 | C47: Arrival | D47: 276.6852843 | E47: 3 | F47: 42 | G47: 152.3423251
B48: 284.5636028 | C48: Arrival | D48: 284.5636028 | E48: 4 | F48: 43 | G48: 137.4674129
B49: 285.4296146 | C49: EndServe | D49: 285.4296146 | E49: 5 | F49: 44 | G49: 131.1899111
B50: 285.4296146 | C50: BeginServe | D50: 285.4296146 | E50: 5 | F50: 45 | G50: 147.2516869
B51: 289.0448953 | C51: Arrival | D51: 289.0448953 | E51: 4 | F51: 46 | G51: 148.6661647
B52: 290.6940656 | C52: Arrival | D52: 290.6940656 | E52: 5 | F52: 47 | G52: 169.3910345
B53: 294.5805322 | C53: EndServe | D53: 294.5805322 | E53: 6 | F53: 48 | G53: 191.7665635
B54: 294.5805322 | C54: BeginServe | D54: 294.5805322 | E54: 6 | F54: 49 | G54: 196.3588158
B55: 306.4248453 | C55: Arrival | D55: 306.4248453 | E55: 5 | F55: 50 | G55: 233.4830161
B56: 311.2999366 | C56: EndServe | D56: 311.2999366 | E56: 6
B57: 311.2999366 | C57: BeginServe | D57: 311.2999366 | E57: 6
B58: 313.6380475 | C58: EndServe | D58: 313.6380475 | E58: 5
B59: 313.6380475 | C59: BeginServe | D59: 313.6380475 | E59: 5
B60: 331.8012462 | C60: Arrival | D60: 331.8012462 | E60: 4
B61: 341.1048266 | C61: EndServe | D61: 341.1048266 | E61: 5
B62: 341.1048266 | C62: BeginServe | D62: 341.1048266 | E62: 5
B63: 369.0161735 | C63: Arrival | D63: 369.0161735 | E63: 4
B64: 377.5331445 | C64: Arrival | D64: 377.5331445 | E64: 5
B65: 378.9778039 | C65: EndServe | D65: 378.9778039 | E65: 6
B66: 378.9778039 | C66: BeginServe | D66: 378.9778039 | E66: 6
B67: 379.8875654 | C67: EndServe | D67: 379.8875654 | E67: 5
B68: 379.8875654 | C68: BeginServe | D68: 379.8875654 | E68: 5
B69: 388.708846 | C69: Arrival | D69: 388.708846 | E69: 4
B70: 393.1862929 | C70: Arrival | D70: 393.1862929 | E70: 5
B71: 403.5477974 | C71: EndServe | D71: 403.5477974 | E71: 6
B72: 403.5477974 | C72: BeginServe | D72: 403.5477974 | E72: 6
B73: 415.4476193 | C73: Arrival | D73: 415.4476193 | E73: 5
B74: 416.4550103 | C74: Arrival | D74: 416.4550103 | E74: 6
B75: 446.5202343 | C75: Arrival | D75: 446.5202343 | E75: 7
B76: 451.6692605 | C76: Arrival | D76: 451.6692605 | E76: 8
B77: 456.0796369 | C77: Arrival | D77: 456.0796369 | E77: 9
B78: 466.0737907 | C78: EndServe | D78: 466.0737907 | E78: 10
B79: 466.0737907 | C79: BeginServe | D79: 466.0737907 | E79: 10
B80: 474.7895655 | C80: Arrival | D80: 474.7895655 | E80: 9
B81: 485.8114804 | C81: Arrival | D81: 485.8114804 | E81: 10
B82: 496.2079519 | C82: EndServe | D82: 496.2079519 | E82: 11
B83: 496.2079519 | C83: BeginServe | D83: 496.2079519 | E83: 11
B84: 509.3884404 | C84: EndServe | D84: 509.3884404 | E84: 10
B85: 509.3884404 | C85: BeginServe | D85: 509.3884404 | E85: 10
B86: 517.0113252 | C86: Arrival | D86: 517.0113252 | E86: 9
B87: 530.1815441 | C87: EndServe | D87: 530.1815441 | E87: 10
B88: 530.1815441 | C88: BeginServe | D88: 530.1815441 | E88: 10
B89: 544.641528 | C89: EndServe | D89: 544.641528 | E89: 9
B90: 544.641528 | C90: BeginServe | D90: 544.641528 | E90: 9
B91: 555.0635242 | C91: Arrival | D91: 555.0635242 | E91: 8
B92: 565.1658218 | C92: Arrival | D92: 565.1658218 | E92: 9
B93: 589.3157299 | C93: Arrival | D93: 589.3157299 | E93: 10
B94: 595.2565154 | C94: EndServe | D94: 595.2565154 | E94: 11
B95: 595.2565154 | C95: BeginServe | D95: 595.2565154 | E95: 11
B96: 595.3176152 | C96: Arrival | D96: 595.3176152 | E96: 10
B97: 607.908566 | C97: Arrival | D97: 607.908566 | E97: 11
B98: 613.5681776 | C98: EndServe | D98: 613.5681776 | E98: 12
B99: 613.5681776 | C99: BeginServe | D99: 613.5681776 | E99: 12
B100: 614.6426892 | C100: Arrival | D100: 614.6426892 | E100: 11
B101: 623.4428862 | C101: EndServe | D101: 623.4428862 | E101: 12
B102: 623.4428862 | C102: BeginServe | D102: 623.4428862 | E102: 12
B103: 633.0784007 | C103: EndServe | D103: 633.0784007 | E103: 11
B104: 633.0784007 | C104: BeginServe | D104: 633.0784007 | E104: 11
B105: 634.0023495 | C105: EndServe | D105: 634.0023495 | E105: 10
B106: 634.0023495 | C106: BeginServe | D106: 634.0023495 | E106: 10
B107: 645.983362 | C107: EndServe | D107: 645.983362 | E107: 9
B108: 645.983362 | C108: BeginServe | D108: 645.983362 | E108: 9
B109: 660.7768783 | C109: Arrival | D109: 660.7768783 | E109: 8
B110: 684.6873401 | C110: Arrival | D110: 684.6873401 | E110: 9
B111: 699.1231649 | C111: EndServe | D111: 699.1231649 | E111: 10
B112: 699.1231649 | C112: BeginServe | D112: 699.1231649 | E112: 10
B113: 708.2403085 | C113: EndServe | D113: 708.2403085 | E113: 9
B114: 708.2403085 | C114: BeginServe | D114: 708.2403085 | E114: 9
B115: 714.3095171 | C115: Arrival | D115: 714.3095171 | E115: 8
B116: 716.9294874 | C116: EndServe | D116: 716.9294874 | E116: 9
B117: 716.9294874 | C117: BeginServe | D117: 716.9294874 | E117: 9
B118: 730.6466702 | C118: Arrival | D118: 730.6466702 | E118: 8
B119: 738.6242646 | C119: Arrival | D119: 738.6242646 | E119: 9
B120: 749.5399336 | C120: Arrival | D120: 749.5399336 | E120: 10
B121: 755.7460176 | C121: EndServe | D121: 755.7460176 | E121: 11
B122: 755.7460176 | C122: BeginServe | D122: 755.7460176 | E122: 11
B123: 764.1587062 | C123: EndServe | D123: 764.1587062 | E123: 10
B124: 764.1587062 | C124: BeginServe | D124: 764.1587062 | E124: 10
B125: 768.8944824 | C125: Arrival | D125: 768.8944824 | E125: 9
B126: 771.3798454 | C126: Arrival | D126: 771.3798454 | E126: 10
B127: 784.3066705 | C127: Arrival | D127: 784.3066705 | E127: 11
B128: 790.2889835 | C128: Arrival | D128: 790.2889835 | E128: 12
B129: 797.7481566 | C129: EndServe | D129: 797.7481566 | E129: 13
B130: 797.7481566 | C130: BeginServe | D130: 797.7481566 | E130: 13
B131: 826.2297083 | C131: EndServe | D131: 826.2297083 | E131: 12
B132: 826.2297083 | C132: BeginServe | D132: 826.2297083 | E132: 12
B133: 833.3122625 | C133: EndServe | D133: 833.3122625 | E133: 11
B134: 833.3122625 | C134: BeginServe | D134: 833.3122625 | E134: 11
B135: 835.9322831 | C135: EndServe | D135: 835.9322831 | E135: 10
B136: 835.9322831 | C136: BeginServe | D136: 835.9322831 | E136: 10
B137: 837.0296653 | C137: EndServe | D137: 837.0296653 | E137: 9
B138: 837.0296653 | C138: BeginServe | D138: 837.0296653 | E138: 9
B139: 851.77693 | C139: EndServe | D139: 851.77693 | E139: 8
B140: 851.77693 | C140: BeginServe | D140: 851.77693 | E140: 8
B141: 861.8365813 | C141: EndServe | D141: 861.8365813 | E141: 7
B142: 861.8365813 | C142: BeginServe | D142: 861.8365813 | E142: 7
B143: 885.8759515 | C143: EndServe | D143: 885.8759515 | E143: 6
B144: 885.8759515 | C144: BeginServe | D144: 885.8759515 | E144: 6
B145: 898.2060983 | C145: EndServe | D145: 898.2060983 | E145: 5
B146: 898.2060983 | C146: BeginServe | D146: 898.2060983 | E146: 5
B147: 938.2855169 | C147: EndServe | D147: 938.2855169 | E147: 4
B148: 938.2855169 | C148: BeginServe | D148: 938.2855169 | E148: 4
B149: 963.1464089 | C149: EndServe | D149: 963.1464089 | E149: 3
B150: 963.1464089 | C150: BeginServe | D150: 963.1464089 | E150: 3
B151: 980.6654863 | C151: EndServe | D151: 980.6654863 | E151: 2
B152: 980.6654863 | C152: BeginServe | D152: 980.6654863 | E152: 2
B153: 1023.772 | C153: EndServe | D153: 1023.772 | E153: 1
B154: 1023.772 | C154: BeginServe | D154: 1023.772 | E154: 1
B155: 1065.366213 | C155: EndServe | D155: 1065.366213 | E155: 0

Sheet Welcome
A1: ©2011 Eksioglu, Seref, Ahuja, Winston

Sheet Report Summary (hidden)
B5: Input Data | E5: Time in System | F5: min
B6: Number of Customers | C6: 50 | E6: Average | F6: =_xll.PsiMean(Simulation!J17) -> 93.2944407
B7: Interarrival Mean | C7: 20 | E7: Max | F7: =_xll.PsiMax(Simulation!J17) -> 327.8840201
B8: Server Mean | C8: 19 | E8: Min | F8: =_xll.PsiMin(Simulation!J17) -> 19.72988268
B12: Waiting Times | C12: min
B13: Average | C13: =_xll.PsiMean(Simulation!J21) -> 74.3382797
B14: Max | C14: =_xll.PsiMax(Simulation!J21) -> 304.1746188
B15: Min | C15: =_xll.PsiMin(Simulation!J21) -> 5.319609289
G17: Bin | H17: Frequency
G18: 0 | H18: 0
G19: 20 | H19: 7
G20: 40 | H20: 26
G21: 60 | H21: 17
G22: 80 | H22: 16
G23: 100 | H23: 12
G24: 120 | H24: 9
G25: 140 | H25: 3
G26: 160 | H26: 1
G27: 180 | H27: 2
G28: 200 | H28: 2
G29: 220 | H29: 1
G30: 240 | H30: 2
G31: 260 | H31: 0
G32: 280 | H32: 1
G33: 300 | H33: 0
G34: More | H34: 1
B40: Queue Length | J40: Utilization | K40: %
B41: Average | C41: 5.407138601 | J41: Average | K41: =_xll.PsiMean(Simulation!J13) -> 0.8423753069
B42: Max | C42: 13 | J42: Max | K42: =_xll.PsiMax(Simulation!J13) -> 0.9958430587
B43: Min | C43: 0 | J43: Min | K43: =_xll.PsiMin(Simulation!J13) -> 0.539769568
G47: Bin | H47: Frequency
G48: 0 | H48: 0
G49: 6 | H49: 0
G50: 12 | H50: 0
G51: 18 | H51: 0
G52: 24 | H52: 0
G53: 30 | H53: 0
G54: 36 | H54: 0
G55: 42 | H55: 0
G56: 48 | H56: 0
G57: 54 | H57: 1
G58: 60 | H58: 2
G59: 66 | H59: 1
G60: 72 | H60: 9
G61: 78 | H61: 11
G62: 84 | H62: 25
G63: 90 | H63: 22
G64: More | H64: 29

Sheet Simulation (hidden)
A6: 50 | B6: 20 | D6: 19
A7: Customer | B7: Interarrival | C7: Arrival | D7: Begin Service | E7: Service | F7: Departure | G7: Time in | H7: Time in
A8: Number | B8: Time | C8: Time | D8: Time | E8: Time | F8: Time | G8: Queue | H8: System
B9: -1 | C9: -2 | D9: (3) | E9: (4) | F9: (5) = (3) + (4) | G9: (6) = (3) - (2) | H9: (7) = (5) - (2)
A10: 1 | B10: =_xll.PsiExponential($B$6) -> 44.13819608 | C10: =B10 -> 44.13819608 | D10: =C10 -> 44.13819608 | E10: =_xll.PsiExponential($D$6) -> 18.96450493 | F10: =D10+E10 -> 63.10270101 | G10: =D10-C10 -> 0 | H10: =F10-C10 -> 18.96450493
A11: 2 | B11: =_xll.PsiExponential($B$6) -> 19.22618524 | C11: =C10+B11 -> 63.36438132 | D11: =MAX(C11,F10) -> 63.36438132 | E11: =_xll.PsiExponential($D$6) -> 35.75774532 | F11: =D11+E11 -> 99.12212665 | G11: =D11-C11 -> 0 | H11: =F11-C11 -> 35.75774532
A12: 3 | B12: =_xll.PsiExponential($B$6) -> 11.4913891 | C12: =C11+B12 -> 74.85577042 | D12: =MAX(C12,F11) -> 99.12212665 | E12: =_xll.PsiExponential($D$6) -> 30.97071679 | F12: =D12+E12 -> 130.0928434 | G12: =D12-C12 -> 24.26635623 | H12: =F12-C12 -> 55.23707302
A13: 4 | B13: =_xll.PsiExponential($B$6) -> 19.04928954 | C13: 93.90505996 | D13: 130.0928434 | E13: =_xll.PsiExponential($D$6) -> 8.678853479 | F13: 138.7716969 | G13: 36.18778348 | H13: 44.86663696 | J13: =SUM(E:E)/MAX(F:F)+_xll.PsiOutput() -> 0.9583243059
A14: 5 | B14: =_xll.PsiExponential($B$6) -> 25.5228092 | C14: 119.4278692 | D14: 138.7716969 | E14: =_xll.PsiExponential($D$6) -> 18.06080413 | F14: 156.8325011 | G14: 19.34382776 | H14: 37.40463189
A15: 6 | B15: =_xll.PsiExponential($B$6) -> 12.1466936 | C15: 131.5745628 | D15: 156.8325011 | E15: =_xll.PsiExponential($D$6) -> 33.29176037 | F15: 190.1242614 | G15: 25.25793829 | H15: 58.54969866 | AY15: 0 | AZ15: 115.2116555
A16: 7 | B16: =_xll.PsiExponential($B$6) -> 55.40145401 | C16: 186.9760168 | D16: 190.1242614 | E16: =_xll.PsiExponential($D$6) -> 2.68190744 | F16: 192.8061689 | G16: 3.148244653 | H16: 5.830152093 | AY16: 20 | AZ16: 182.8656059
A17: 8 | B17: =_xll.PsiExponential($B$6) -> 3.201928538 | C17: 190.1779453 | D17: 192.8061689 | E17: =_xll.PsiExponential($D$6) -> 49.2414321 | F17: 242.047601 | G17: 2.628223555 | H17: 51.86965566 | J17: =AVERAGE(H:H)+_xll.PsiOutput() -> 135.6309823 | K17: min | AY17: 40 | AZ17: 89.69063181
A18: 9 | B18: =_xll.PsiExponential($B$6) -> 2.37426886 | C18: 192.5522142 | D18: 242.047601 | E18: =_xll.PsiExponential($D$6) -> 2.328320837 | F18: 244.3759218 | G18: 49.4953868 | H18: 51.82370764 | AY18: 60 | AZ18: 53.38814794
A19: 10 | B19: =_xll.PsiExponential($B$6) -> 4.131324452 | C19: 196.6835386 | D19: 244.3759218 | E19: =_xll.PsiExponential($D$6) -> 11.15760374 | F19: 255.5335255 | G19: 47.69238318 | H19: 58.84998692 | AY19: 80 | AZ19: 35.11063573
A20: 11 | B20: =_xll.PsiExponential($B$6) -> 43.98726614 | C20: 240.6708048 | D20: 255.5335255 | E20: =_xll.PsiExponential($D$6) -> 9.873487117 | F20: 265.4070127 | G20: 14.86272078 | H20: 24.7362079 | AY20: 100 | AZ20: 231.8416603
A21: 12 | B21: =_xll.PsiExponential($B$6) -> 13.42492594 | C21: 254.0957307 | D21: 265.4070127 | E21: =_xll.PsiExponential($D$6) -> 9.287021332 | F21: 274.694034 | G21: 11.31128196 | H21: 20.5983033 | J21: =AVERAGE(G:G)+_xll.PsiOutput() -> 115.2116555 | K21: min | AY21: 120 | AZ21: 83.26103769
A22: 13 | B22: =_xll.PsiExponential($B$6) -> 3.031431804 | C22: 257.1271625 | D22: 274.694034 | E22: =_xll.PsiExponential($D$6) -> 10.73558064 | F22: 285.4296146 | G22: 17.56687149 | H22: 28.30245213 | AY22: 140 | AZ22: 44.82789644
A23: 14 | B23: =_xll.PsiExponential($B$6) -> 1.733963228 | C23: 258.8611257 | D23: 285.4296146 | E23: =_xll.PsiExponential($D$6) -> 9.150917522 | F23: 294.5805322 | G23: 26.5684889 | H23: 35.71940642 | AY23: 160 | AZ23: 26.52762585
A24: 15 | B24: =_xll.PsiExponential($B$6) -> 0.214153898 | C24: 259.0752796 | D24: 294.5805322 | E24: =_xll.PsiExponential($D$6) -> 16.71940444 | F24: 311.2999366 | G24: 35.50525252 | H24: 52.22465697 | AY24: 180 | AZ24: 60.45578052
A25: 16 | B25: =_xll.PsiExponential($B$6) -> 0.1612987081 | C25: 259.2365783 | D25: 311.2999366 | E25: =_xll.PsiExponential($D$6) -> 2.338110934 | F25: 313.6380475 | G25: 52.06335826 | H25: 54.40146919 | AY25: 200 | AZ25: 70.12714527
A26: 17 | B26: =_xll.PsiExponential($B$6) -> 17.448706 | C26: 276.6852843 | D26: 313.6380475 | E26: =_xll.PsiExponential($D$6) -> 27.46677904 | F26: 341.1048266 | G26: 36.95276319 | H26: 64.41954223 | AY26: 220 | AZ26: 43.93976974
A27: 18 | B27: =_xll.PsiExponential($B$6) -> 7.878318443 | C27: 284.5636028 | D27: 341.1048266 | E27: =_xll.PsiExponential($D$6) -> 37.87297729 | F27: 378.9778039 | G27: 56.54122378 | H27: 94.41420108 | AY27: 240 | AZ27: 11.30818715
A28: 19 | B28: =_xll.PsiExponential($B$6) -> 4.481292561 | C28: 289.0448953 | D28: 378.9778039 | E28: =_xll.PsiExponential($D$6) -> 0.9097615241 | F28: 379.8875654 | G28: 89.93290852 | H28: 90.84267004 | AY28: 260 | AZ28: 65.35807525
A29: 20 | B29: =_xll.PsiExponential($B$6) -> 1.64917027 | C29: 290.6940656 | D29: 379.8875654 | E29: =_xll.PsiExponential($D$6) -> 23.66023205 | F29: 403.5477974 | G29: 89.19349977 | H29: 112.8537318 | AY29: 280 | AZ29: 67.33541917
A30: 21 | B30: =_xll.PsiExponential($B$6) -> 15.7307797 | C30: 306.4248453 | D30: 403.5477974 | E30: =_xll.PsiExponential($D$6) -> 62.52599323 | F30: 466.0737907 | G30: 97.12295212 | H30: 159.6489453 | AY30: 300 | AZ30: 39.27705375
A31: 22 | B31: =_xll.PsiExponential($B$6) -> 25.37640089 | C31: 331.8012462 | D31: 466.0737907 | E31: =_xll.PsiExponential($D$6) -> 30.13416121 | F31: 496.2079519 | G31: 134.2725444 | H31: 164.4067057 | AZ31: 23.46451444
A32: 23 | B32: =_xll.PsiExponential($B$6) -> 37.21492729 | C32: 369.0161735 | D32: 496.2079519 | E32: =_xll.PsiExponential($D$6) -> 13.18048854 | F32: 509.3884404 | G32: 127.1917784 | H32: 140.3722669 | AZ32: 32.01237852
A33: 24 | B33: =_xll.PsiExponential($B$6) -> 8.516970957 | C33: 377.5331445 | D33: 509.3884404 | E33: =_xll.PsiExponential($D$6) -> 20.79310374 | F33: 530.1815441 | G33: 131.8552959 | H33: 152.6483997 | AZ33: 27.89586917
A34: 25 | B34: =_xll.PsiExponential($B$6) -> 11.17570159 | C34: 388.708846 | D34: 530.1815441 | E34: =_xll.PsiExponential($D$6) -> 14.45998386 | F34: 544.641528 | G34: 141.4726981 | H34: 155.932682 | AZ34: 176.8543948
A35: 26 | B35: =_xll.PsiExponential($B$6) -> 4.477446808 | C35: 393.1862929 | D35: 544.641528 | E35: =_xll.PsiExponential($D$6) -> 50.61498735 | F35: 595.2565154 | G35: 151.4552351 | H35: 202.0702225 | AZ35: 202.6528631
A36: 27 | B36: =_xll.PsiExponential($B$6) -> 22.26132647 | C36: 415.4476193 | D36: 595.2565154 | E36: =_xll.PsiExponential($D$6) -> 18.31166229 | F36: 613.5681776 | G36: 179.808896 | H36: 198.1205583 | AZ36: 52.18682596
A37: 28 | B37: =_xll.PsiExponential($B$6) -> 1.007390949 | C37: 416.4550103 | D37: 613.5681776 | E37: =_xll.PsiExponential($D$6) -> 9.874708513 | F37: 623.4428862 | G37: 197.1131674 | H37: 206.9878759 | AZ37: 33.667574
A38: 29 | B38: =_xll.PsiExponential($B$6) -> 30.06522405 | C38: 446.5202343 | D38: 623.4428862 | E38: =_xll.PsiExponential($D$6) -> 9.635514536 | F38: 633.0784007 | G38: 176.9226518 | H38: 186.5581664 | AZ38: 109.5826809
A39: 30 | B39: =_xll.PsiExponential($B$6) -> 5.149026131 | C39: 451.6692605 | D39: 633.0784007 | E39: =_xll.PsiExponential($D$6) -> 0.923948829 | F39: 634.0023495 | G39: 181.4091402 | H39: 182.3330891 | AZ39: 35.7315724
A40: 31 | B40: =_xll.PsiExponential($B$6) -> 4.410376481 | C40: 456.0796369 | D40: 634.0023495 | E40: =_xll.PsiExponential($D$6) -> 11.98101242 | F40: 645.983362 | G40: 177.9227126 | H40: 189.903725 | AZ40: 97.20227644
A41: 32 | B41: =_xll.PsiExponential($B$6) -> 18.70992853 | C41: 474.7895655 | D41: 645.983362 | E41: =_xll.PsiExponential($D$6) -> 53.13980293 | F41: 699.1231649 | G41: 171.1937965 | H41: 224.3335994 | AZ41: 32.786423
A42: 33 | B42: =_xll.PsiExponential($B$6) -> 11.02191495 | C42: 485.8114804 | D42: 699.1231649 | E42: =_xll.PsiExponential($D$6) -> 9.117143663 | F42: 708.2403085 | G42: 213.3116845 | H42: 222.4288281 | AZ42: 89.88668159
A43: 34 | B43: =_xll.PsiExponential($B$6) -> 31.19984475 | C43: 517.0113252 | D43: 708.2403085 | E43: =_xll.PsiExponential($D$6) -> 8.689178894 | F43: 716.9294874 | G43: 191.2289834 | H43: 199.9181623 | AZ43: 57.48623016
A44: 35 | B44: =_xll.PsiExponential($B$6) -> 38.05219906 | C44: 555.0635242 | D44: 716.9294874 | E44: =_xll.PsiExponential($D$6) -> 38.81653018 | F44: 755.7460176 | G44: 161.8659632 | H44: 200.6824934 | AZ44: 74.90860463
A45: 36 | B45: =_xll.PsiExponential($B$6) -> 10.10229757 | C45: 565.1658218 | D45: 755.7460176 | E45: =_xll.PsiExponential($D$6) -> 8.412688597 | F45: 764.1587062 | G45: 190.5801958 | H45: 198.9928844 | AZ45: 19.95688741
A46: 37 | B46: =_xll.PsiExponential($B$6) -> 24.14990812 | C46: 589.3157299 | D46: 764.1587062 | E46: =_xll.PsiExponential($D$6) -> 33.58945034 | F46: 797.7481566 | G46: 174.8429763 | H46: 208.4324266 | AZ46: 155.6087504
A47: 38 | B47: =_xll.PsiExponential($B$6) -> 6.00188528 | C47: 595.3176152 | D47: 797.7481566 | E47: =_xll.PsiExponential($D$6) -> 28.48155171 | F47: 826.2297083 | G47: 202.4305413 | H47: 230.9120931 | AZ47: 36.2868318
A48: 39 | B48: =_xll.PsiExponential($B$6) -> 12.59095082 | C48: 607.908566 | D48: 826.2297083 | E48: =_xll.PsiExponential($D$6) -> 7.082554258 | F48: 833.3122625 | G48: 218.3211422 | H48: 225.4036965 | AZ48: 160.0663008
A49: 40 | B49: =_xll.PsiExponential($B$6) -> 6.734123196 | C49: 614.6426892 | D49: 833.3122625 | E49: =_xll.PsiExponential($D$6) -> 2.620020532 | F49: 835.9322831 | G49: 218.6695733 | H49: 221.2895938 | AZ49: 14.83216678
A50: 41 | B50: =_xll.PsiExponential($B$6) -> 46.13418909 | C50: 660.7768783 | D50: 835.9322831 | E50: =_xll.PsiExponential($D$6) -> 1.097382214 | F50: 837.0296653 | G50: 175.1554047 | H50: 176.252787 | AZ50: 11.91748612
A51: 42 | B51: =_xll.PsiExponential($B$6) -> 23.91046183 | C51: 684.6873401 | D51: 837.0296653 | E51: =_xll.PsiExponential($D$6) -> 14.74726474 | F51: 851.77693 | G51: 152.3423251 | H51: 167.0895899 | AZ51: 77.39483254
A52: 43 | B52: =_xll.PsiExponential($B$6) -> 29.62217701 | C52: 714.3095171 | D52: 851.77693 | E52: =_xll.PsiExponential($D$6) -> 10.05965129 | F52: 861.8365813 | G52: 137.4674129 | H52: 147.5270642 | AZ52: 80.34588533
A53: 44 | B53: =_xll.PsiExponential($B$6) -> 16.33715305 | C53: 730.6466702 | D53: 861.8365813 | E53: =_xll.PsiExponential($D$6) -> 24.03937024 | F53: 885.8759515 | G53: 131.1899111 | H53: 155.2292813 | AZ53: 45.33156876
A54: 45 | B54: =_xll.PsiExponential($B$6) -> 7.977594441 | C54: 738.6242646 | D54: 885.8759515 | E54: =_xll.PsiExponential($D$6) -> 12.33014674 | F54: 898.2060983 | G54: 147.2516869 | H54: 159.5818336 | AZ54: 39.70065639
A55: 46 | B55: =_xll.PsiExponential($B$6) -> 10.91566893 | C55: 749.5399336 | D55: 898.2060983 | E55: =_xll.PsiExponential($D$6) -> 40.07941864 | F55: 938.2855169 | G55: 148.6661647 | H55: 188.7455834 | AZ55: 98.21512819
A56: 47 | B56: =_xll.PsiExponential($B$6) -> 19.35454884 | C56: 768.8944824 | D56: 938.2855169 | E56: =_xll.PsiExponential($D$6) -> 24.86089197 | F56: 963.1464089 | G56: 169.3910345 | H56: 194.2519265 | AZ56: 85.60351992
A57: 48 | B57: =_xll.PsiExponential($B$6) -> 2.485362972 | C57: 771.3798454 | D57: 963.1464089 | E57: =_xll.PsiExponential($D$6) -> 17.51907741 | F57: 980.6654863 | G57: 191.7665635 | H57: 209.2856409 | AZ57: 46.85357652
A58: 49 | B58: =_xll.PsiExponential($B$6) -> 12.92682514 | C58: 784.3066705 | D58: 980.6654863 | E58: =_xll.PsiExponential($D$6) -> 43.10651331 | F58: 1023.772 | G58: 196.3588158 | H58: 239.4653291 | AZ58: 44.42199736
A59: 50 | B59: =_xll.PsiExponential($B$6) -> 5.982312948 | C59: 790.2889835 | D59: 1023.772 | E59: =_xll.PsiExponential($D$6) -> 41.59421377 | F59: 1065.366213 | G59: 233.4830161 | H59: 275.0772299 | AZ59: 20.61228168
A60: 51 | AZ60: 127.2361211
A61: 52 | AZ61: 118.056857
A62: 53 | AZ62: 41.56309766
A63: 54 | AZ63: 5.319609289
A64: 55 | AZ64: 33.86341813
A65: 56 | AZ65: 22.15882723
A66: 57 | AZ66: 20.12958104
A67: 58 | AZ67: 32.78106749
A68: 59 | AZ68: 68.19464879
A69: 60 | AZ69: 137.4047053
A70: 61 | AZ70: 198.0950145
A71: 62 | AZ71: 106.4679696
A72: 63 | AZ72: 225.2808989
A73: 64 | AZ73: 38.62758229
A74: 65 | AZ74: 44.64691386
A75: 66 | AZ75: 84.66677776
A76: 67 | AZ76: 71.68919855
A77: 68 | AZ77: 31.9534888
A78: 69 | AZ78: 6.745272202
A79: 70 | AZ79: 36.85454233
A80: 71 | AZ80: 52.92145466
A81: 72 | AZ81: 36.44031589
A82: 73 | AZ82: 59.12586196
A83: 74 | AZ83: 279.904728
A84: 75 | AZ84: 53.70855489
A85: 76 | AZ85: 71.70689191
A86: 77 | AZ86: 26.05894631
A87: 78 | AZ87: 25.67174699
A88: 79 | AZ88: 32.46574536
A89: 80 | AZ89: 35.31077206
A90: 81 | AZ90: 62.6804847
A91: 82 | AZ91: 71.3924508
A92: 83 | AZ92: 18.96159553
A93: 84 | AZ93: 86.51084467
A94: 85 | AZ94: 43.81735197
A95: 86 | AZ95: 85.50186485
A96: 87 | AZ96: 57.20987429
A97: 88 | AZ97: 24.97816828
A98: 89 | AZ98: 129.1926427
A99: 90 | AZ99: 100.8974602
A100: 91 | AZ100: 78.94803836
A101: 92 | AZ101: 47.13531939
A102: 93 | AZ102: 110.6693496
A103: 94 | AZ103: 25.99886333
A104: 95 | AZ104: 112.7557128
A105: 96 | AZ105: 57.48930289
A106: 97 | AZ106: 65.70417084
A107: 98 | AZ107: 116.1674053
A108: 99 | AZ108: 97.19253057
A109: 100 | AZ109: 118.6281855
A110: 101 | AZ110: 60.16642893
A111: 102 | AZ111: 73.83345749
A112: 103 | AZ112: 94.49062132
A113: 104 | AZ113: 60.28752923
A114: 105 | AZ114: 304.1746188
A115: 106
A116: 107
A117: 108
A118: 109
A119: 110
A120: 111
A121: 112
A122: 113
A123: 114
A124: 115
A125: 116
A126: 117
A127: 118
A128: 119
A129: 120
A130: 121
A131: 122
A132: 123
A133: 124
A134: 125
A135: 126
A136: 127
A137: 128
A138: 129
A139: 130
A140: 131
A141: 132
A142: 133
A143: 134
A144: 135
A145: 136
A146: 137
A147: 138
A148: 139
A149: 140
A150: 141
A151: 142
A152: 143
A153: 144
A154: 145
A155: 146
A156: 147
A157: 148
A158: 149
A159: 150
A160: 151
A161: 152
A162: 153
A163: 154
A164: 155
A165: 156
A166: 157
A167: 158
A168: 159
A169: 160
A170: 161
A171: 162
A172: 163
A173: 164
A174: 165
A175: 166
A176: 167
A177: 168
A178: 169
A179: 170
A180: 171
A181: 172
A182: 173
A183: 174
A184: 175
A185: 176
A186: 177
A187: 178
A188: 179
A189: 180
A190: 181
A191: 182
A192: 183
A193: 184
A194: 185
A195: 186
A196: 187
A197: 188
A198: 189
A199: 190
A200: 191
A201: 192
A202: 193
A203: 194
A204: 195
A205: 196
... 696 more rows
